bitfinex/quotes_BTCUSD_20220115
["timestamp","ask_amount","ask_price","bid_price","bid_amount"]
[1642267437568,6.876e-05,43395.0,43394.0,0.58558182]
[1642267438621,6.876e-05,43395.0,43393.0,0.58558182]
[1642267439424,6.876e-05,43395.0,43392.0,0.58558182]
[1642267444168,6.876e-05,43395.0,43391.0,0.7646307]
[1642267444770,6.876e-05,43395.0,43393.0,0.58558182]
[1642267444970,6.876e-05,43395.0,43394.0,0.057598]
[1642267445520,6.876e-05,43395.0,43394.0,0.0541]
[1642267446226,6.876e-05,43395.0,43394.0,0.63968182]
[1642267446418,6.876e-05,43395.0,43394.0,0.62468182]
[1642267446619,6.876e-05,43395.0,43394.0,0.2216853]
[1642267447019,6.876e-05,43395.0,43394.0,0.80726712]
[1642267447518,6.876e-05,43395.0,43394.0,0.62468182]
[1642267447919,6.876e-05,43395.0,43394.0,0.80584755]
[1642267448118,6.876e-05,43395.0,43394.0,0.22026573]
[1642267448720,6.876e-05,43395.0,43394.0,0.80584755]
[1642267449169,6.876e-05,43395.0,43394.0,0.22026573]
[1642267449973,6.876e-05,43395.0,43394.0,0.80584755]
[1642267451175,6.876e-05,43395.0,43394.0,0.76674755]
[1642267451577,6.876e-05,43395.0,43394.0,0.18116573]
[1642267452475,6.876e-05,43395.0,43393.0,0.79832347]
[1642267452717,6.876e-05,43395.0,43394.0,0.5796399]
[1642267453320,6.876e-05,43395.0,43393.0,0.6948239]
[1642267453518,6.876e-05,43395.0,43393.0,0.87330739]
[1642267453919,6.876e-05,43395.0,43394.0,0.17450441]
[1642267454619,6.876e-05,43395.0,43394.0,0.75414431]
[1642267455418,6.876e-05,43395.0,43394.0,0.7559545]
[1642267455619,6.876e-05,43395.0,43394.0,0.1763146]
[1642267456469,0.09353587,43399.0,43394.0,0.1763146]
[1642267457271,0.09353587,43399.0,43394.0,0.5796399]
[1642267457870,0.09353587,43399.0,43393.0,0.6948239]
[1642267458070,0.07853587,43399.0,43393.0,0.6948239]
[1642267458471,0.07853587,43399.0,43394.0,0.5796399]
[1642267459172,0.07853587,43399.0,43395.0,0.5796399]
[1642267459973,0.07853587,43399.0,43396.0,0.17297688]
[1642267460234,0.07853587,43399.0,43395.0,0.5796399]
[1642267460635,0.07853587,43399.0,43394.0,0.75231128]
[1642267461335,0.07853587,43399.0,43394.0,0.5796399]
[1642267461735,0.07946936,43399.0,43394.0,0.5796399]
[1642267462837,0.07853587,43399.0,43394.0,0.5796399]
[1642267463038,0.07946936,43399.0,43394.0,0.5796399]
[1642267463338,0.07946936,43399.0,43395.0,0.057591]
[1642267463539,0.07946936,43399.0,43396.0,0.17923362]
[1642267463973,0.07853587,43399.0,43395.0,0.057591]
[1642267465371,0.07946936,43399.0,43395.0,0.057591]
[1642267466173,0.07946936,43399.0,43395.0,0.6372309]
[1642267466374,0.07853587,43399.0,43395.0,0.6372309]
[1642267466573,0.07946936,43399.0,43395.0,0.6372309]
[1642267467575,0.07853587,43399.0,43395.0,0.6372309]
[1642267467819,0.07946936,43399.0,43395.0,0.6372309]
[1642267468821,0.07853587,43399.0,43395.0,0.6372309]
[1642267469022,0.07946936,43399.0,43395.0,0.6372309]
[1642267469727,0.07946936,43399.0,43395.0,0.057591]
[1642267469922,0.07853587,43399.0,43395.0,0.057591]
[1642267470122,0.07946936,43399.0,43395.0,0.057591]
[1642267470323,0.07946936,43399.0,43395.0,0.6372309]
[1642267471227,0.07853587,43399.0,43395.0,0.6372309]
[1642267471475,0.07946936,43399.0,43395.0,0.6372309]
[1642267472470,0.07853587,43399.0,43395.0,0.6372309]
[1642267472672,0.07946936,43399.0,43395.0,0.6372309]
[1642267473572,0.07853587,43399.0,43395.0,0.6372309]
[1642267473772,0.07946936,43399.0,43395.0,0.6372309]
[1642267474372,0.07946936,43399.0,43396.0,0.5796399]
[1642267474777,0.07853587,43399.0,43396.0,0.5796399]
[1642267475627,0.07853587,43399.0,43397.0,0.28813267]
[1642267476629,0.07853587,43399.0,43397.0,0.86777257]
[1642267476827,0.07853587,43399.0,43397.0,0.6948129]
[1642267477628,0.07853587,43399.0,43398.0,0.5796399]
[1642267478028,0.07860463,43399.0,43398.0,0.5796399]
[1642267480271,0.07860463,43399.0,43397.0,0.79831247]
[1642267480872,0.07860463,43399.0,43398.0,0.17896917]
[1642267481174,0.07860463,43399.0,43397.0,0.79831247]
[1642267481397,0.07860463,43399.0,43398.0,0.17436081]
[1642267481673,0.07860463,43399.0,43397.0,0.79831247]
[1642267482475,0.07860463,43399.0,43398.0,0.17215948]
[1642267482918,0.07860463,43399.0,43398.0,0.16215948]
[1642267483419,0.07860463,43399.0,43398.0,1.83092356]
[1642267483821,0.07860463,43399.0,43398.0,0.84529895]
[1642267484019,0.07860463,43399.0,43398.0,0.68313947]
[1642267484420,0.07860463,43399.0,43398.0,1.84109062]
[1642267484822,0.07860463,43399.0,43398.0,1.66876408]
[1642267485123,0.07860463,43399.0,43398.0,0.68313947]
[1642267485922,0.07860463,43399.0,43397.0,0.115173]
[1642267485923,0.07860463,43399.0,43397.0,0.79831247]
[1642267486322,0.07860463,43399.0,43398.0,1.66876679]
[1642267486776,0.05527587,43399.0,43398.0,1.66876679]
[1642267489377,0.05527587,43399.0,43398.0,1.72635279]
[1642267489780,0.00093348,43401.0,43400.0,0.34926407]
[1642267490425,0.30182233,43406.0,43400.0,0.34926407]
[1642267490728,0.00093346,43403.0,43400.0,0.34926407]
[1642267491624,0.00010314,43405.0,43400.0,0.34926407]
[1642267491825,0.00093345,43404.0,43401.0,0.57452287]
[1642267492023,0.0010194,43404.0,43401.0,0.57452287]
[1642267492224,6.876e-05,43403.0,43401.0,0.63211087]
[1642267493127,6.876e-05,43403.0,43402.0,0.57452287]
[1642267493728,6.876e-05,43403.0,43401.0,0.63211087]
[1642267494780,6.876e-05,43403.0,43401.0,0.80324087]
[1642267495181,6.876e-05,43403.0,43401.0,0.63211087]
[1642267495380,6.876e-05,43403.0,43401.0,0.80344971]
[1642267495581,6.876e-05,43403.0,43402.0,0.17094625]
[1642267495782,6.876e-05,43403.0,43401.0,0.7278977]
[1642267496183,6.876e-05,43403.0,43401.0,0.6831977]
[1642267496384,6.876e-05,43403.0,43401.0,0.85491041]
[1642267496584,0.00093345,43404.0,43402.0,0.17483382]
[1642267496885,0.00050663,43404.0,43401.0,0.6831977]
[1642267497284,0.00050663,43404.0,43401.0,0.85613356]
[1642267497585,0.001,43406.0,43403.0,0.57391276]
[1642267500332,0.001,43406.0,43404.0,0.33785007]
[1642267500531,0.001,43406.0,43405.0,1.107576]
[1642267500931,0.001,43406.0,43405.0,1.68148876]
[1642267501334,0.001,43406.0,43405.0,0.63148876]
[1642267501584,0.001,43406.0,43405.0,0.057576]
[1642267501779,0.00093341,43408.0,43407.0,0.408]
[1642267502180,0.00093341,43408.0,43407.0,0.008]
[1642267502381,0.003,43411.0,43407.0,0.758]
[1642267502581,0.003,43411.0,43407.0,0.75924587]
[1642267502582,0.00293339,43410.0,43407.0,0.75924587]
[1642267502781,0.00010314,43409.0,43407.0,0.00924587]
[1642267502980,0.00010314,43409.0,43407.0,0.58226803]
[1642267503182,8.595e-05,43408.0,43407.0,0.58102216]
[1642267505423,8.595e-05,43408.0,43407.0,0.008]
[1642267506224,0.00101934,43411.0,43408.0,0.35]
[1642267506422,0.00101934,43411.0,43407.0,0.58102216]
[1642267507024,0.00101934,43411.0,43407.0,0.008]
[1642267510476,0.002,43413.0,43409.0,0.05880412]
[1642267510873,6.876e-05,43412.0,43409.0,0.05880412]
[1642267512721,6.876e-05,43412.0,43409.0,0.057575]
[1642267514022,6.876e-05,43412.0,43409.0,0.056075]
[1642267514224,6.876e-05,43412.0,43407.0,0.008]
[1642267514622,6.876e-05,43412.0,43408.0,0.00075411]
[1642267515522,0.31235103,43409.0,43407.0,0.008]
[1642267515722,0.31235103,43409.0,43408.0,0.00075412]
[1642267516874,0.31235103,43409.0,43407.0,0.008]
[1642267519577,6.876e-05,43412.0,43407.0,0.008]
[1642267520077,0.00100206,43414.0,43408.0,6.876e-05]
[1642267520523,0.00100206,43414.0,43409.0,0.00075409]
[1642267520524,0.42349219,43413.0,43409.0,0.00075409]
[1642267520726,0.24541388,43411.0,43409.0,0.00075409]
[1642267521631,2.38272188,43410.0,43408.0,6.876e-05]
[1642267521823,2.38272188,43410.0,43408.0,0.00082288]
[1642267522025,2.35,43409.0,43407.0,0.00092288]
[1642267522334,2.05,43407.0,43404.0,0.42394504]
[1642267522525,0.0463,43406.0,43404.0,0.42394504]
[1642267522926,0.0463,43406.0,43403.0,9.6703097]
[1642267523124,0.0463,43406.0,43403.0,9.0]
[1642267523324,0.3238104,43404.0,43403.0,9.0]
[1642267523526,0.4701104,43404.0,43403.0,9.0]
[1642267523726,0.4701104,43404.0,43403.0,9.00008595]
[1642267523974,0.64295805,43404.0,43403.0,9.00008595]
[1642267526173,0.64295805,43404.0,43403.0,8.95528595]
[1642267527719,0.31914765,43404.0,43403.0,8.95528595]
[1642267528322,0.05760243,43410.0,43403.0,8.95528595]
[1642267528523,0.1,43404.0,43403.0,8.95528595]
[1642267528723,0.1463,43404.0,43403.0,8.9552]
[1642267529525,0.0463,43404.0,43403.0,8.9552]
[1642267531325,0.0463,43404.0,43403.0,8.9106]
[1642267533171,0.2763,43404.0,43403.0,8.9106]
[1642267536231,0.2763,43404.0,43403.0,8.8657]
[1642267536432,0.23,43404.0,43403.0,8.8657]
[1642267537831,0.23,43404.0,43403.0,8.859]
[1642267538036,0.23,43404.0,43403.0,9.43546349]
[1642267538232,0.32226204,43413.0,43404.0,0.46]
[1642267538633,2.69712471,43413.0,43404.0,0.46]
[1642267539074,0.42226204,43413.0,43404.0,0.46]
[1642267539275,0.32226204,43413.0,43405.0,0.28013996]
[1642267539976,0.32226204,43413.0,43404.0,0.46]
[1642267540976,0.37986004,43413.0,43404.0,0.46]
[1642267541177,0.48109724,43413.0,43404.0,0.46]
[1642267541877,0.42349924,43413.0,43404.0,0.46]
[1642267542276,0.42226204,43413.0,43406.0,0.00075518]
[1642267542476,0.1,43413.0,43406.0,0.00075518]
[1642267542732,0.16988305,43414.0,43406.0,0.00075518]
[1642267542933,0.23,43413.0,43406.0,0.00075518]
[1642267543137,0.23008595,43413.0,43404.0,0.46]
[1642267543335,0.23008595,43413.0,43407.0,0.00075515]
[1642267543534,0.26638589,43412.0,43407.0,0.00075515]
[1642267544336,0.26638589,43412.0,43404.0,0.46]
[1642267544535,0.26638589,43412.0,43407.0,0.00075515]
[1642267545340,0.10008595,43413.0,43407.0,0.00075515]
[1642267545539,0.08433553,43413.0,43404.0,0.46]
[1642267545743,0.08433553,43413.0,43408.0,0.00075514]
[1642267545940,0.16988306,43414.0,43408.0,0.00084109]
[1642267546576,0.33884108,43413.0,43408.0,0.00084109]
[1642267546772,0.33884108,43413.0,43408.0,8.595e-05]
[1642267546975,0.33884108,43413.0,43408.0,0.00084107]
[1642267547272,0.33884108,43413.0,43409.0,6.876e-05]
[1642267548476,0.33884108,43413.0,43408.0,0.00075512]
[1642267548677,0.33884108,43413.0,43409.0,6.876e-05]
[1642267549477,0.0010021,43414.0,43409.0,6.876e-05]
[1642267549678,0.0010021,43414.0,43408.0,0.00075512]
[1642267549878,0.0010021,43414.0,43409.0,6.876e-05]
[1642267550078,0.74238419,43415.0,43409.0,6.876e-05]
[1642267550338,0.74178886,43415.0,43409.0,6.876e-05]
[1642267550542,0.31104377,43414.0,43409.0,6.876e-05]
[1642267550738,0.31104377,43414.0,43405.0,0.00013752]
[1642267550942,0.57848747,43415.0,43405.0,0.00013752]
[1642267551139,0.57348747,43415.0,43405.0,0.57688299]
[1642267551341,0.5675021,43415.0,43405.0,0.57688299]
[1642267551538,0.5675021,43415.0,43406.0,0.00012033]
[1642267552139,0.5675021,43415.0,43408.0,0.25028775]
[1642267552540,0.5675021,43415.0,43409.0,6.876e-05]
[1642267553545,0.5625021,43415.0,43409.0,6.876e-05]
[1642267553742,0.80417724,43415.0,43409.0,6.876e-05]
[1642267554171,0.80417724,43415.0,43410.0,0.0007635]
[1642267555173,0.80417724,43415.0,43409.0,6.876e-05]
[1642267555478,0.80417724,43415.0,43410.0,0.00076349]
[1642267555672,0.90417724,43415.0,43410.0,0.00076349]
[1642267555872,2.22843235,43411.0,43410.0,0.00076349]
[1642267556473,2.22843235,43411.0,43407.0,0.00010314]
[1642267556675,0.90417724,43415.0,43408.0,0.00076354]
[1642267557074,0.90417724,43415.0,43409.0,6.876e-05]
[1642267557740,0.90417724,43415.0,43410.0,0.0007635]
[1642267558543,2.26835812,43414.0,43410.0,0.0007635]
[1642267558744,2.26835812,43414.0,43409.0,6.876e-05]
[1642267558941,2.26835812,43414.0,43410.0,0.0007635]
[1642267559943,2.26835812,43414.0,43406.0,0.57674547]
[1642267560145,0.90417724,43415.0,43410.0,0.0007635]
[1642267561144,0.90417724,43415.0,43407.0,0.00010314]
[1642267561349,0.90417724,43415.0,43410.0,0.00076349]
[1642267561576,2.53293288,43414.0,43410.0,0.00076349]
[1642267562374,2.53293288,43414.0,43406.0,0.5768658]
[1642267562576,2.53293288,43414.0,43410.0,0.0007635]
[1642267563178,0.80417724,43415.0,43410.0,0.0007635]
[1642267563577,0.80417724,43415.0,43407.0,0.00010314]
[1642267563776,0.80417724,43415.0,43410.0,0.00076349]
[1642267564779,0.80417724,43415.0,43406.0,0.00012033]
[1642267564979,0.80417724,43415.0,43410.0,0.00076349]
[1642267565432,0.50417724,43415.0,43410.0,0.00076349]
[1642267565934,0.50417724,43415.0,43406.0,0.5768658]
[1642267566131,0.50417724,43415.0,43410.0,0.00076349]
[1642267567033,3.00769915,43415.0,43410.0,0.00076349]
[1642267567233,3.00769915,43415.0,43407.0,0.57684861]
[1642267567433,3.00769915,43415.0,43410.0,0.00076349]
[1642267567635,0.05649328,43414.0,43410.0,0.00076349]
[1642267568032,2.90279105,43415.0,43410.0,0.00076349]
[1642267568233,0.05868626,43414.0,43410.0,0.00076349]
[1642267568437,0.05868626,43414.0,43407.0,0.00010314]
[1642267568637,2.90279105,43415.0,43410.0,0.00076349]
[1642267569082,2.84519705,43415.0,43410.0,0.00076349]
[1642267569679,2.84519705,43415.0,43406.0,0.00012033]
[1642267569880,2.84519705,43415.0,43410.0,0.00076349]
[1642267570579,0.34167514,43415.0,43410.0,0.00076349]
[1642267570780,0.34167514,43415.0,43406.0,0.5768658]
[1642267570982,0.24167514,43415.0,43410.0,0.00076349]
[1642267571181,0.34167514,43415.0,43410.0,0.00076349]
[1642267571381,0.39867556,43415.0,43410.0,0.00076349]
[1642267571585,1.84796383,43411.0,43410.0,0.00076349]
[1642267571782,1.89550353,43411.0,43410.0,0.00076349]
[1642267571980,1.99550353,43411.0,43407.0,0.00010314]
[1642267572183,0.00127496,43408.0,43404.0,0.46]
[1642267572382,0.0012941,43405.0,43404.0,0.46]
[1642267572581,0.0475941,43405.0,43404.0,0.46]
[1642267573426,0.5975941,43405.0,43404.0,0.0001]
[1642267573627,0.1475941,43405.0,43404.0,0.0001]
[1642267574026,0.74882968,43405.0,43404.0,0.0001]
[1642267574426,0.93093209,43405.0,43404.0,0.0001]
[1642267576227,0.83093209,43405.0,43404.0,0.0001]
[1642267576478,1.2,43404.0,43403.0,8.8146]
[1642267576677,0.1463,43404.0,43403.0,8.8146]
[1642267576880,0.1463,43404.0,43403.0,8.81466876]
[1642267577280,0.31283517,43404.0,43403.0,8.81466876]
[1642267577578,0.1463,43404.0,43403.0,8.81466876]
[1642267577779,0.0463,43404.0,43403.0,8.81466876]
[1642267577980,0.07422972,43404.0,43403.0,8.81466876]
[1642267579384,0.0463,43404.0,43403.0,8.81466876]
[1642267579580,0.21760746,43404.0,43403.0,8.81466876]
[1642267579979,1.26760746,43404.0,43403.0,8.80966876]
[1642267580239,0.31760746,43404.0,43403.0,8.80966876]
[1642267581244,0.21760746,43404.0,43403.0,8.80966876]
[1642267581447,0.86760746,43404.0,43403.0,8.76486876]
[1642267581747,0.31760746,43404.0,43403.0,8.76486876]
[1642267582048,0.1463,43404.0,43403.0,8.76486876]
[1642267582245,0.31393957,43404.0,43403.0,8.76486876]
[1642267582546,0.1463,43404.0,43403.0,8.76486876]
[1642267582746,0.0463,43404.0,43403.0,8.76486876]
[1642267584184,0.2125303,43404.0,43403.0,8.76486876]
[1642267584584,0.52336395,43404.0,43403.0,8.76486876]
[1642267584780,0.35713365,43404.0,43403.0,8.76486876]
[1642267584980,0.45713365,43404.0,43403.0,8.76486876]
[1642267585382,0.62479344,43404.0,43403.0,8.76486876]
[1642267585883,0.62799492,43404.0,43403.0,8.76486876]
[1642267586682,0.62799492,43404.0,43403.0,8.71946876]
[1642267587283,0.62299492,43404.0,43403.0,8.71946876]
[1642267587733,0.1413,43404.0,43403.0,8.71946876]
[1642267588132,0.0413,43404.0,43403.0,8.71946876]
[1642267588333,0.21204113,43404.0,43403.0,8.71946876]
[1642267588534,0.81204113,43404.0,43403.0,8.71946876]
[1642267588734,1.11219874,43404.0,43403.0,8.71946876]
[1642267588938,1.04145761,43404.0,43403.0,8.71946876]
[1642267589133,0.1413,43404.0,43403.0,8.71946876]
[1642267589933,0.0413,43404.0,43403.0,8.71946876]
[1642267591133,0.0413,43404.0,43403.0,8.90946876]
[1642267591335,0.90717349,43404.0,43403.0,8.90946876]
[1642267591584,1.00717349,43404.0,43403.0,8.86476876]
[1642267591782,0.1413,43404.0,43403.0,8.86476876]
[1642267592786,0.0413,43404.0,43403.0,8.86476876]
[1642267595331,0.2082558,43404.0,43403.0,8.86476876]
[1642267595728,0.0413,43404.0,43403.0,8.86476876]
[1642267595929,0.20863258,43404.0,43403.0,8.86476876]
[1642267596630,1.30863258,43404.0,43403.0,8.82006876]
[1642267597030,0.30863258,43404.0,43403.0,8.82006876]
[1642267598231,0.20863258,43404.0,43403.0,8.82006876]
[1642267598430,0.30863258,43404.0,43403.0,8.82006876]
[1642267599493,0.0413,43404.0,43403.0,8.82006876]
[1642267601089,0.21072926,43404.0,43403.0,8.82006876]
[1642267601291,0.16942926,43404.0,43403.0,8.82006876]
[1642267601692,1.01942926,43404.0,43403.0,8.77536876]
[1642267601991,0.65325079,43405.0,43403.0,8.77536876]
[1642267602191,0.31279503,43404.0,43403.0,8.77536876]
[1642267602393,0.21279503,43404.0,43403.0,8.77536876]
[1642267602595,0.31279503,43404.0,43403.0,8.77536876]
[1642267603244,0.86279503,43404.0,43403.0,8.77362829]
[1642267603443,0.31279503,43404.0,43403.0,8.77362829]
[1642267603644,0.0463,43404.0,43403.0,8.77362829]
[1642267603843,0.31106063,43404.0,43403.0,8.77362829]
[1642267604045,0.1463,43404.0,43403.0,8.77362829]
[1642267604943,0.0463,43404.0,43403.0,8.77362829]
[1642267605746,0.33724534,43404.0,43403.0,8.77362829]
[1642267606145,0.43724534,43404.0,43403.0,8.77362829]
[1642267606784,0.43724534,43404.0,43403.0,8.72892829]
[1642267609589,0.1463,43404.0,43403.0,8.72892829]
[1642267609791,0.0463,43404.0,43403.0,8.72892829]
[1642267611634,0.4463,43404.0,43403.0,8.68422829]
[1642267611834,0.0463,43404.0,43403.0,8.68422829]
[1642267612033,0.1463,43404.0,43403.0,8.68422829]
[1642267612234,0.2463,43404.0,43403.0,8.68422829]
[1642267613038,0.1463,43404.0,43403.0,8.68422829]
[1642267613635,0.2463,43404.0,43403.0,8.68422829]
[1642267614083,0.3463,43404.0,43403.0,8.68422829]
[1642267614582,0.5463,43404.0,43403.0,8.68422829]
[1642267615185,0.70964722,43404.0,43403.0,8.68422829]
[1642267615384,0.5463,43404.0,43403.0,8.68422829]
[1642267615588,0.6463,43404.0,43403.0,8.68422829]
[1642267615785,0.81196441,43404.0,43403.0,8.68422829]
[1642267616787,0.81196441,43404.0,43403.0,8.63952829]
[1642267617837,0.6463,43404.0,43403.0,8.63952829]
[1642267618036,0.81000369,43404.0,43403.0,8.63952829]
[1642267618241,0.6463,43404.0,43403.0,8.44952829]
[1642267621144,0.4563,43404.0,43403.0,8.44952829]
[1642267621587,0.5026,43404.0,43403.0,8.44952829]
[1642267621784,0.3563,43404.0,43403.0,8.40482829]
[1642267624484,0.3563,43404.0,43403.0,8.98446176]
[1642267625085,0.3513,43404.0,43403.0,8.98446176]
[1642267626651,0.3513,43404.0,43403.0,8.40482829]
[1642267626954,0.3513,43404.0,43403.0,8.36012829]
[1642267628755,0.3513,43404.0,43403.0,8.93976176]
[1642267630385,0.04304687,43404.0,43403.0,8.93976176]
[1642267630786,0.04304687,43404.0,43403.0,10.01600034]
[1642267631389,0.23,43405.0,43404.0,1.53609373]
[1642267631587,0.23,43405.0,43404.0,1.45120227]
[1642267632284,0.20403817,43405.0,43404.0,3.11196394]
[1642267632486,0.20403817,43405.0,43404.0,3.16954294]
[1642267632737,0.02596183,43405.0,43404.0,3.16954294]
[1642267632938,0.00293322,43416.0,43405.0,0.95]
[1642267633145,0.001,43419.0,43415.0,0.67206849]
[1642267633341,0.001,43419.0,43417.0,0.00129189]
[1642267636497,0.00098544,43423.0,43417.0,0.00129189]
[1642267636888,0.00020628,43419.0,43417.0,0.00129189]
[1642267637288,0.00018909,43418.0,43417.0,0.00129189]
[1642267639691,0.00018909,43418.0,43415.0,0.00078032]
[1642267639991,0.0001719,43417.0,43415.0,0.00078032]
[1642267640437,0.00015471,43416.0,43413.0,0.17059368]
[1642267640638,0.00015471,43416.0,43414.0,0.00078036]
[1642267640937,0.00013752,43415.0,43414.0,0.00078036]
[1642267641742,0.00013752,43415.0,43413.0,0.17059368]
[1642267642137,0.00012033,43414.0,43413.0,0.17059368]
[1642267643840,0.00012033,43414.0,43413.0,0.77059368]
[1642267644084,0.00012033,43414.0,43413.0,0.17059368]
[1642267646888,0.00012033,43414.0,43411.0,0.00078043]
[1642267647284,0.00010314,43413.0,43411.0,0.00078043]
[1642267647585,8.595e-05,43412.0,43410.0,0.29486099]
[1642267647862,6.876e-05,43411.0,43410.0,0.29564146]
[1642267648070,6.876e-05,43411.0,43410.0,0.00078047]
[1642267648263,0.45006876,43411.0,43410.0,0.00078047]
[1642267648864,6.876e-05,43411.0,43403.0,8.36012829]
[1642267649063,6.876e-05,43411.0,43408.0,0.00078052]
[1642267650065,0.0463,43410.0,43403.0,8.36012829]
[1642267650265,0.0463,43410.0,43407.0,0.00078054]
[1642267650464,0.03959884,43410.0,43407.0,0.00078054]
[1642267651265,0.03959884,43410.0,43404.0,0.1665978]
[1642267651498,0.03959884,43410.0,43406.0,0.00078057]
[1642267652394,0.03959884,43410.0,43404.0,0.1661887]
[1642267652592,6.876e-05,43411.0,43404.0,0.1661887]
[1642267652593,6.876e-05,43411.0,43406.0,0.00078058]
[1642267653594,6.876e-05,43411.0,43404.0,0.1661887]
[1642267653792,6.876e-05,43411.0,43406.0,0.00078057]
[1642267654792,6.876e-05,43411.0,43404.0,0.16837232]
[1642267654992,6.876e-05,43411.0,43406.0,0.00078057]
[1642267656039,6.876e-05,43411.0,43404.0,0.16837232]
[1642267656243,6.876e-05,43411.0,43406.0,0.00078057]
[1642267657043,0.0463,43410.0,43406.0,0.00078057]
[1642267657249,0.16966531,43409.0,43403.0,8.36012829]
[1642267657444,0.0463,43408.0,43406.0,0.00078057]
[1642267657746,2.19171461,43407.0,43406.0,0.00078057]
[1642267657942,1.58801461,43407.0,43406.0,0.00078057]
[1642267658142,1.68801461,43407.0,43406.0,0.00078057]
[1642267658544,1.68801461,43407.0,43403.0,8.36012829]
[1642267658743,1.68801461,43407.0,43404.0,0.00078063]
[1642267659587,0.4711218,43407.0,43403.0,8.36012829]
[1642267659792,0.63260123,43407.0,43403.0,8.36090894]
[1642267660393,0.30777943,43407.0,43403.0,8.36090894]
[1642267660588,0.20777943,43407.0,43403.0,8.36090894]
[1642267660790,0.1463,43407.0,43403.0,8.36012829]
[1642267660988,0.1463,43407.0,43403.0,8.36090896]
[1642267661890,0.1463,43407.0,43403.0,8.31620896]
[1642267662189,0.0463,43407.0,43403.0,8.31620896]
[1642267663132,0.0463,43407.0,43403.0,8.31542829]
[1642267663631,0.0463,43407.0,43403.0,8.31620896]
[1642267664034,0.15934783,43406.0,43403.0,8.31620896]
[1642267664433,0.0463,43407.0,43403.0,8.31542829]
[1642267665633,6.876e-05,43411.0,43404.0,0.166092]
[1642267666135,6.876e-05,43411.0,43404.0,0.16735572]
[1642267666588,0.23,43407.0,43404.0,0.16735572]
[1642267667190,0.23,43407.0,43404.0,0.74681755]
[1642267668089,0.23,43407.0,43404.0,0.16735572]
[1642267669889,0.23,43407.0,43404.0,0.16684861]
[1642267671540,0.23,43407.0,43404.0,0.74631044]
[1642267672939,0.23,43407.0,43404.0,0.80389444]
[1642267673539,0.23,43407.0,43406.0,0.0012623]
[1642267673739,0.23,43407.0,43406.0,2.47440696]
[1642267673988,6.876e-05,43411.0,43407.0,1.47540785]
[1642267674688,6.876e-05,43411.0,43408.0,0.02707838]
[1642267674889,6.876e-05,43411.0,43409.0,0.18901206]
[1642267675293,6.876e-05,43411.0,43409.0,0.24658906]
[1642267675491,6.876e-05,43411.0,43410.0,1.16932428]
[1642267675687,6.876e-05,43411.0,43410.0,0.16932428]
[1642267676491,6.876e-05,43411.0,43410.0,0.76932428]
[1642267676891,6.876e-05,43411.0,43409.0,0.22870121]
[1642267677091,6.876e-05,43411.0,43410.0,1.26758401]
[1642267677490,6.876e-05,43411.0,43410.0,0.16758401]
[1642267679135,6.876e-05,43411.0,43410.0,1.26982703]
[1642267679336,6.876e-05,43411.0,43410.0,1.1]
[1642267679537,6.876e-05,43411.0,43410.0,2.06634089]
[1642267680036,6.876e-05,43411.0,43410.0,1.21634089]
[1642267680434,6.876e-05,43411.0,43410.0,1.79582025]
[1642267681235,6.876e-05,43411.0,43410.0,2.25135385]
[1642267682691,6.876e-05,43411.0,43410.0,2.35135385]
[1642267683091,6.876e-05,43411.0,43410.0,1.89582025]
[1642267683492,6.876e-05,43411.0,43410.0,1.68068225]
[1642267684293,0.00093316,43422.0,43412.0,0.00013751]
[1642267684496,0.00093316,43422.0,43412.0,0.16949949]
[1642267684694,0.0001719,43421.0,43412.0,0.16949949]
[1642267685095,0.00015471,43420.0,43415.0,0.00078034]
[1642267685547,0.00013752,43419.0,43415.0,0.00078034]
[1642267685743,0.00074424,43423.0,43415.0,0.00078034]
[1642267685947,0.00074424,43423.0,43412.0,0.00013751]
[1642267686144,0.00074424,43423.0,43412.0,0.16788447]
[1642267686344,0.00074424,43423.0,43413.0,0.00010314]
[1642267687444,0.00074424,43423.0,43416.0,0.00078886]
[1642267688044,0.00074424,43423.0,43416.0,0.05835986]
[1642267688246,0.00074424,43423.0,43417.0,0.17244723]
[1642267688649,0.00074424,43423.0,43418.0,0.0463]
[1642267689088,0.00074424,43423.0,43422.0,0.7433742]
[1642267689288,0.00074424,43423.0,43421.0,0.0463]
[1642267689590,0.000813,43423.0,43422.0,0.24195596]
[1642267689789,0.000813,43423.0,43422.0,0.05877298]
[1642267690389,0.000813,43423.0,43422.0,0.31693473]
[1642267690789,0.000813,43423.0,43422.0,0.05877298]
[1642267691791,0.000813,43423.0,43422.0,0.3876355]
[1642267691989,0.000813,43423.0,43422.0,0.22719985]
[1642267692189,0.000813,43423.0,43422.0,0.05877298]
[1642267692591,0.000813,43423.0,43422.0,0.22791339]
[1642267692838,0.000813,43423.0,43422.0,0.05877298]
[1642267693039,0.000813,43423.0,43422.0,0.2263558]
[1642267693239,0.000813,43423.0,43422.0,0.05877298]
[1642267694540,0.000813,43423.0,43422.0,0.00121298]
[1642267694941,0.000813,43423.0,43419.0,0.00078876]
[1642267695541,0.24611014,43423.0,43418.0,0.057567]
[1642267695742,0.24611014,43423.0,43419.0,0.00078878]
[1642267695942,0.000813,43423.0,43419.0,0.00078878]
[1642267696789,0.000813,43423.0,43418.0,0.057567]
[1642267696989,0.000813,43423.0,43419.0,0.00078878]
[1642267698089,0.000813,43423.0,43418.0,0.057567]
[1642267698291,0.000813,43423.0,43419.0,0.00078878]
[1642267698990,0.000813,43423.0,43419.0,0.11591678]
[1642267699195,0.000813,43423.0,43419.0,0.115128]
[1642267699390,0.000813,43423.0,43419.0,0.11591678]
[1642267700441,0.000813,43423.0,43419.0,0.115128]
[1642267700640,0.000813,43423.0,43419.0,0.11591678]
[1642267701039,0.000813,43423.0,43419.0,0.00078878]
[1642267701640,0.000813,43423.0,43416.0,0.057574]
[1642267701842,0.000813,43423.0,43419.0,0.00078878]
[1642267702843,0.000813,43423.0,43413.0,0.11524814]
[1642267703040,0.000813,43423.0,43419.0,0.00078878]
[1642267704092,0.000813,43423.0,43414.0,8.595e-05]
[1642267704093,0.36054114,43418.0,43414.0,8.595e-05]
[1642267705392,0.36054114,43418.0,43415.0,0.05757]
[1642267705792,0.000813,43423.0,43415.0,1.84229984]
[1642267705992,0.000813,43423.0,43415.0,0.3922731]
[1642267706591,0.000813,43423.0,43417.0,0.00078884]
[1642267706995,0.32511464,43419.0,43417.0,0.00078884]
[1642267707738,0.32511464,43419.0,43417.0,0.057573]
[1642267708338,0.32511464,43419.0,43416.0,0.00078886]
[1642267708941,0.32511464,43419.0,43414.0,8.595e-05]
[1642267709140,0.32511464,43419.0,43415.0,0.00078888]
[1642267709944,0.32511464,43419.0,43416.0,0.057571]
[1642267712191,0.000813,43423.0,43416.0,0.057571]
[1642267712589,0.000813,43423.0,43417.0,0.00078882]
[1642267713589,0.000813,43423.0,43416.0,0.057571]
[1642267713789,0.4420805,43422.0,43418.0,0.00078881]
[1642267714489,0.4420805,43422.0,43419.0,0.057566]